Cogmind - Beta 11.1 @@@ ROGUE MODE // 2022.06.11 @ 22:52:03 Player: ChromeKnight Result: Self-destructed Performance ------------- Evolutions (1) 500 Regions Visited (3) 600 Robots Destroyed (40) 200 Value Destroyed (567) 567 Prototype IDs (0) 0 Alien Tech Used (0) 0 Bonus (202) 202 TOTAL SCORE: 2069 Bonus ------- High Alert Combat Kills 13 Follower Combat Kills 190 Friendly Fire -1 Cogmind --------- Core Integrity 281/400 Matter 287/300 Energy 100/100 System Corruption 0% Temperature Cool (21) Movement Rolling (200) Ox8 Location -9/Materials Parts ------- > --- POWER (1) -------- (None) > --- PROPULSION (2) --- Wheel > --- UTILITY (4) ------ Huge Storage Unit Targeting Computer > --- WEAPON (2) ------- Heavy Assault Rifle > --- INVENTORY (25) --- Light Treads Light Treads Small Storage Unit Medium Storage Unit Propulsion Shielding Mini Grenade Launcher Mini Grenade Launcher Plasma Cutter Plasma Cutter Peak State ------------ > --- POWER ------------ Ion Engine > --- PROPULSION ------- Light Treads Light Treads > --- UTILITY ---------- Small Storage Unit Targeting Computer > --- WEAPON ----------- EM Shotgun EM Shotgun > --- INVENTORY -------- EM Shotgun EM Shotgun Mini Grenade Launcher Mini Grenade Launcher Plasma Cutter Plasma Cutter Plasma Cutter Plasma Cutter [Rating: 10] Favorites ----------- Power Ion Engine Engine Ion Engine Propulsion Light Treads Treads Light Treads Wheel Wheel Flight Unit Flight Unit Utility Targeting Computer Storage Huge Storage Unit Processor Targeting Computer Weapon EM Shotgun Energy Gun EM Shotgun Ballistic Gun Heavy Assault Rifle Launcher Mini Grenade Launcher Build | -11 -10 -10 -9 ------- Run | Scr Mat Min Mat Slots Evolved 2 | . . . 2 Power . | . . . . Propulsion . | . . . . Utility 2 | . . . 2 Weapon . | . . . . Parts Attached 28 | 6 7 10 5 Power 5 | 1 1 3 . Engine 5 | 1 1 3 . Core . | . . . . Reactor . | . . . . Propulsion 8 | 2 1 4 1 Treads 4 | 2 1 1 . Leg . | . . . . Wheel 3 | . . 2 1 Hover . | . . . . Flight 1 | . . 1 . Utility 4 | 1 3 . . Device . | . . . . Storage 3 | 1 2 . . Processor 1 | . 1 . . Hackware . | . . . . Protection . | . . . . Artifact . | . . . . Weapon 11 | 2 2 3 4 Energy Gun 7 | 2 2 2 1 Energy Cannon . | . . . . Ballistic Gun 2 | . . . 2 Ballistic Cannon . | . . . . Launcher 2 | . . 1 1 Special Weapon . | . . . . Impact Weapon . | . . . . Slashing Weapon . | . . . . Piercing Weapon . | . . . . Special Melee Weapon . | . . . . Unidentified Prototypes . | . . . . Parts Lost 11 | . 2 5 4 Power 3 | . 1 1 1 Propulsion 3 | . . 1 2 Utility . | . . . . Weapon 5 | . 1 3 1 Highest Loss Streak 3 | . 1 3 2 To Critical Strikes 1 | . . . 1 Average Slot Usage (%) 88 | . 96 82 65 Engine 12 | . 13 13 9 Treads 18 | . 28 10 . Wheel 6 | . . 13 15 Storage 13 | . 14 14 11 Processor 13 | . 13 14 11 Energy Gun 20 | . 26 15 7 Naked Turns . | . . . . Heaviest Build 91 | 14 91 89 88 Greatest Support 40 | 40 40 40 20 Greatest Overweight (x) 21 | . 2 21 8 Average Overweight (x) 2 | . . 4 5 Largest Inventory Capacity 25 | 8 25 25 25 Average Capacity 17 | 6 11 25 25 Most Carried 12 | . 12 12 11 Average Carried 6 | . 5 8 8 Final Capacity 25 | 8 25 25 25 Final Carried 11 | . 11 7 9 Class Distribution -------------------- 98% | Mutant Dominant Class ---------------- Mutant | -10/Materials Mutant | -10/Mines Mutant | -9/Materials Resources | -11 -10 -10 -9 ----------- Run | Scr Mat Min Mat Matter Collected 505 | 209 109 115 72 Remotely . | . . . . Salvage Created 1082 | . 591 383 108 Parts 84 | . 34 40 10 Haulers Intercepted 2 | . 2 . . Recyclers Shooed 3 | . 1 2 . Parts Field Recycled . | . . . . Retrieved Matter . | . . . . Parts Self-Destructed . | . . . . Prevented . | . . . . Kills | -11 -10 -10 -9 ------- Run | Scr Mat Min Mat Combat Hostiles Destroyed 27 | . 11 13 3 Guns 22 | . 10 10 2 AOE 5 | . 1 3 1 Classes Destroyed 9 | . 6 2 1 Worker 3 | . 1 2 . Builder 2 | . . 2 . Tunneler 1 | . . 1 . Hauler 2 | . 2 . . Recycler 2 | . 1 1 . Watcher 3 | . 2 . 1 Swarmer 19 | . 5 13 1 Grunt 7 | . 6 . 1 Sentry 1 | . . . 1 Best Kill Streak 5 | . 4 5 1 Combat Bots Only 5 | . 3 5 1 Max Kills in Single Turn 3 | . 2 3 1 Gunslinging . | . . . . Exploded 3 | . 1 3 1 Melee . | . . . . Uniques/NPCs Destroyed . | . . . . Combat | -11 -10 -10 -9 -------- Run | Scr Mat Min Mat Damage Taken 1321 | . 367 537 417 Core 283 | . 40 124 119 Absorbed by Shields . | . . . . Core Remaining (%) 67 | 100 . 34 . Volleys Fired 72 | . 20 37 15 Largest 2 | . 2 2 2 Hottest 90 | . 90 90 80 Shots Fired 106 | . 33 47 26 Gun 103 | . 33 46 24 Cannon . | . . . . Launcher 3 | . . 1 2 Special . | . . . . Kinetic 10 | . . . 10 Thermal 14 | . . . 14 Explosive 3 | . . 1 2 Electromagnetic 79 | . 33 46 . Robot Hit Streak 20 | . 10 9 20 Robot Miss Streak 5 | . 5 4 3 Penetration Max . | . . . . Secondary Targets 4 | . 2 1 1 Max Gunslinging Chain 1 | . 1 1 1 Shots Hit Robots 88 | . 27 40 21 Core Hits 61 | . 25 27 9 Critical Kills . | . . . . Critical Parts Destroyed . | . . . . Critical Strikes . | . . . . Melee Attacks . | . . . . Impact . | . . . . Slashing . | . . . . Piercing . | . . . . Sneak Attacks . | . . . . Combat Hostiles . | . . . . Follow-up Attacks . | . . . . Damage Inflicted 1581 | . 533 667 381 Guns 1159 | . 438 466 255 Cannons . | . . . . Explosions 405 | . 89 201 115 Melee . | . . . . Ramming 17 | . 6 . 11 Kinetic 105 | . . . 105 Thermal 293 | . 89 54 150 Explosive 262 | . . 147 115 Electromagnetic 904 | . 438 466 . Impact . | . . . . Slashing . | . . . . Piercing . | . . . . Highest Corruption . | . . . . Average Corruption . | . . . . Corruption Purged . | . . . . Corruption Blocked . | . . . . Overload Shots . | . . . . Overflow Damage 64 | . 2 62 . Projectiles . | . . . . Explosions 64 | . 2 62 . Melee . | . . . . Knockbacks . | . . . . Impact . | . . . . Kinetic . | . . . . Secondary . | . . . . Self-Inflicted Damage 80 | . 29 24 27 Shots 3 | . 1 1 1 Rammed 2 | . 1 . 1 Targets Rammed 2 | . 1 . 1 Kicked . | . . . . Crushed . | . . . . Highest Temperature 150 | . 108 150 51 Average Temperature 28 | . 34 29 15 Received Heat Transfer 309 | . 138 . 171 Siege Activations . | . . . . Robots Corrupted . | . . . . Combat Hostiles . | . . . . Parts Fried 2 | . 1 1 . Impact Corruptions . | . . . . Robots Melted . | . . . . Combat Hostiles . | . . . . Parts Melted . | . . . . Heat Transferred 694 | . 150 100 444 Parts Sabotaged . | . . . . Parts Stolen . | . . . . Parts Stripped . | . . . . Power Chain Reactions 3 | . 2 1 . Missiles Intercepted . | . . . . Alert | -11 -10 -10 -9 ------- Run | Scr Mat Min Mat Peak Influence 533 | . 283 322 533 Initial 114 | . . 90 114 Average 130 | . 59 200 312 Maximum Alert Level 2 | . 1 1 2 Low Security (%) 71 | 100 87 57 27 Level 1 23 | . 12 42 31 Level 2 4 | . . . 41 Level 3 . | . . . . Level 4 . | . . . . Level 5 . | . . . . High Security . | . . . . Max Security . | . . . . Squads Dispatched 6 | . 5 . 1 Investigation 5 | . 5 . . Extermination . | . . . . Reinforcement 1 | . . . 1 Assault . | . . . . Garrison . | . . . . Intercept . | . . . . Searches Triggered . | . . . . Construction Impeded 1 | . . . 1 Haulers Reinforced . | . . . . Active Scanning Responses . | . . . . Cargo Convoy Interrupts . | . . . . Stealth | -11 -10 -10 -9 --------- Run | Scr Mat Min Mat Distress Signals 4 | . 1 . 3 Communications Jammed . | . . . . Distress Signals . | . . . . Times Spotted 48 | . 17 16 15 Peak Tracking Total 6 | . 5 3 6 Tactical Retreats 2 | . . 2 . Traps | -11 -10 -10 -9 ------- Run | Scr Mat Min Mat Traps Triggered 3 | . 3 . . Indirectly . | . . . . Trap Hack Attempts . | . . . . Triggered . | . . . . Disarmed . | . . . . Reprogrammed . | . . . . Reused . | . . . . Traps Extracted . | . . . . Installed . | . . . . Triggered . | . . . . Machines | -11 -10 -10 -9 ---------- Run | Scr Mat Min Mat Machines Disabled 1 | . . . 1 Max in Single Turn 1 | . . . 1 Machines Sabotaged . | . . . . Garrisons Compromised . | . . . . Overloaded Fab Kills . | . . . . Hacking | -11 -10 -10 -9 --------- Run | Scr Mat Min Mat Machines Accessed 5 | . 3 . 2 Terminals 5 | . 3 . 2 Fabricators . | . . . . Repair Stations . | . . . . Recycling Units . | . . . . Scanalyzers . | . . . . Garrison Access . | . . . . Total Hacks 16 | . 11 . 5 Successful 9 | . 6 . 3 Failed 7 | . 5 . 2 Catastrophic . | . . . . Database Lockouts . | . . . . Manual 11 | . 6 . 5 Terminals 16 | . 11 . 5 Fabricators . | . . . . Repair Stations . | . . . . Recycling Units . | . . . . Scanalyzers . | . . . . Garrison Access . | . . . . Terminal Hacks 2 | . 2 . . Recall Investigation 1 | . 1 . . Zone Layout 1 | . 1 . . Fabricator Hacks . | . . . . Repair Station Hacks . | . . . . Recycling Unit Hacks . | . . . . Scanalyzer . | . . . . Garrison Access Hacks . | . . . . Unauthorized Hacks 7 | . 4 . 3 Terminals 7 | . 4 . 3 Botnet 5 | . 3 . 2 Operators 2 | . 1 . 1 Fabricators . | . . . . Repair Stations . | . . . . Recycling Units . | . . . . Scanalyzers . | . . . . Garrison Access . | . . . . Data Cores Recovered . | . . . . Used . | . . . . Hacking Detections 4 | . 2 . 2 Full Trace Events 2 | . 2 . . Feedback Events . | . . . . Feedback Blocked . | . . . . Robot Schematics Acquired . | . . . . Robots Built . | . . . . Authchips . | . . . . Time . | . . . . Total Robot Build Rating . | . . . . Part Schematics Acquired . | . . . . Parts Built . | . . . . Authchips . | . . . . Time . | . . . . Total Part Build Rating . | . . . . Parts Repaired . | . . . . Time . | . . . . Parts Recycled . | . . . . Recycled Matter . | . . . . Retrieved Matter . | . . . . Retrieved Components . | . . . . Parts Scanalyzed . | . . . . Part Schematics Acquired . | . . . . Parts Damaged . | . . . . Bothacking | -11 -10 -10 -9 ------------ Run | Scr Mat Min Mat Used RIF Installer . | . . . . Robots Hacked . | . . . . Non-combat . | . . . . Combat . | . . . . Robot Hacks Applied . | . . . . Relay Couplers Released . | . . . . Fabnet Peak Effective % . | . . . . Robots Rewired . | . . . . Allies Hacked . | . . . . Hacks Repelled . | . . . . Allies | -11 -10 -10 -9 -------- Run | Scr Mat Min Mat Total Allies 1 | . . 1 . Largest Group 1 | . . 1 1 Highest-Rated Group 31 | . . 31 31 Highest-Rated Ally 31 | . . 31 31 Total Orders . | . . . . Ally Attacks 22 | . . . 22 Total Damage 270 | . . . 270 Kills 8 | . . . 8 Allies Corrupted . | . . . . Allies Melted . | . . . . Intel | -11 -10 -10 -9 ------- Run | Scr Mat Min Mat Robot Analysis Total . | . . . . Derelict Logs Recovered 2 | . . 2 . Drone Launches . | . . . . Drone Recoveries . | . . . . Exploration | -11 -10 -10 -9 ------------- Run | Scr Mat Min Mat Turns Passed 2415 | 85 1303 749 278 Spaces Moved 888 | 49 381 326 132 Core 1 | 1 . . . Treads 497 | 48 381 68 . Legs . | . . . . Wheels 389 | . . 257 132 Hover . | . . . . Flight 1 | . . 1 . Fastest Speed 50 | 50 160 140 140 Average Speed 189 | 157 194 197 164 Slowest Speed 1740 | 160 320 1740 200 Overloaded Moves . | . . . . Propulsion Burnouts . | . . . . Robots Hopped . | . . . . Cave-ins Triggered . | . . . . Exploration Rate (%) 41 | 4 63 78 20 Regions Visited 3 Branch Regions 1 Pre-discovered Areas 1 | . . 1 . Known Exits Taken . | . . . . Unknown Exits Taken 3 | 1 1 1 . Scrap Searched 1 | . . 1 . Spaces Dug . | . . . . Terrain Destroyed 45 | . 9 14 22 Melee . | . . . . Projectile . | . . . . AOE 45 | . 9 14 22 Terrain Rammed . | . . . . Walls Destroyed . | . . . . Machines Disabled . | . . . . Actions | -11 -10 -10 -9 --------- Run | Scr Mat Min Mat Total 1515 | 54 910 386 165 Wait 493 | . 484 1 8 Move 885 | 48 380 325 132 Hop . | . . . . Pick Up 19 | . 12 5 2 Fast Attach 14 | 6 3 3 2 Attach 7 | . . 5 2 Detach 2 | . . . 2 Swap 7 | . 4 2 1 Drop 14 | . 6 8 . Fire 72 | . 20 37 15 Melee . | . . . . Ram 1 | . . . 1 Kick . | . . . . Crush 1 | . 1 . . Escape Stasis . | . . . . Rewire . | . . . . Trap . | . . . . Miscellaneous . | . . . . Route ------- -11/Scrapyard -10/Materials (discovered 3 exits: *Mat x2 / [*Min]) -10/Mines (discovered 2 exits: *Mat / Exi) -9/Materials (discovered 1 exit: [*Min]) History --------- Turn | Location | Event 18 | -11/Scrapyard | Discovered new exit (range 15) 86 | -11/Scrapyard | Entered Materials 309 | -10/Materials | Build established: Mutant 937 | -10/Materials | Discovered new exit (range 15) 1139 | -10/Materials | Discovered new exit (range 10) 1327 | -10/Materials | Discovered new exit (range 8) 1389 | -10/Materials | Entered Mines 1493 | -10/Mines | Identified exit to Exiles 1529 | -10/Mines | Learned location of Zion (-7) 1607 | -10/Mines | Lost 3 parts (1p1n1w) 1668 | -10/Mines | Core integrity fell below 50% 2110 | -10/Mines | Received a Mining Laser from a helpful Derelict 2132 | -10/Mines | Discovered new exit (range 5) 2138 | -10/Mines | Entered Materials 2138 | -9/Materials | Accompanied by 1 ally 2138 | -9/Materials | Evolved 2 slots: Utility x2 2250 | -9/Materials | Discovered new exit (range 15) 2416 | -9/Materials | Self-destructed Last Messages --------------- 02320_ T-07 Excavator is excavating. 02322_ K-01 Serf collects debris. 02324_ T-07 Excavator is excavating. 02324_ U-05 Engineer lays Concrete. 02326_ K-01 Serf collects debris. 02328_ R-06 Scavenger collects Sml. Laser. 02331_ R-06 Scavenger collects Aluminum Leg. 02342_ R-06 Scavenger collects Flight Unit. 02350_ Acquired 3 matter. 02364_ Lgt. Ion Engine destroyed. 02373_ K-01 Serf collects debris. 02375_ 0I-62C(g): "You look like you can take it from here!" 02375_ 0I-62C(g) slips back into the shadows. 02378_ K-01 Serf collects debris. 02411_ Critical hit (Burn: +37). 02413_ Y-45 Defender destroyed. 02413_ Switching to secondary target: Y-45 Defender. 02413_ Electrolysis Chamber disabled. 02414_ Critical hit (Destroy). 02414_ Med. Laser destroyed. Map ----- +----------------------------------------------------+ | ?????????????????????????????????????????????????? | | ?????????????????????????????????????????????????? | | ?????????????????????????????????????????????????? | | ?????????????????????????????????????????????????? | | ?????????????????????????????????????????????????? | | ?????????????????????????????????????????????????? | | ????????????????????????????????????????##+?????#? | | ????????????????????????????????????????# ??? # | | ????????????????????????????????????????# ?"" # | | ????????????????????????????????????????# """ # | | ????????????????????????????????????????# """ # | | ????????????????????????????????????????# # | | ????????????????????????????????????????# "" "" # | | ????????????????????????????????????????# ""S"" ? | | ????????????????????????????????????????# """" ? | | ????????????????????????????????######### ? | | ?????????????????????# #######+## ##/####### | | ?????????????????????? !%= | | ???????????????????????????# <% % | | ????????????????????######## % | | ??????????????????# # ##" "## ### # | | ??????????????????# "" Y # ##" !"! "## ### # | | ??????????????????# """ # ##"""""""## #?#+# | | ??????????????????# """ [# ########### #? | | ??????????????????# # #?????????# #? | | ??????????????????# ""@ # #?????###?# # | | ?????????????????# """ # #????# # # | | ?????????????????## S"%Y[ #????# = + | | ??????????????????# =#[ #????## #%==# | | ??????????????????#####+#### #?????##### % # | | ??????????????????????# ??? #????????#%= #? | | ?????????????????????? ??? ?????? #?### | | ????????????????????? ???? % ???? #???? | | ???????????????????? ???? ? #???? | | ???????????????????#?##???? ########## #???? | | ???????????????????????????# ##????????# #???? | | ???????????????????????????? #?????????# #???? | | ???????????????????????????? #????????? #???? | | ???????????????????????????? #?????????# +???? | | ???????????????????????????? #?????????# #???? | | ???????????????????????????? #?????????### #???? | | ???????????????????????????? ????????????? #???? | | ???????????????????????????????????????????? #???? | | ???????????????????????????????????????????? ???? | | ?????????????????????????????????????????????????? | | ?????????????????????????????????????????????????? | | ?????????????????????????????????????????????????? | | ?????????????????????????????????????????????????? | | ?????????????????????????????????????????????????? | | ?????????????????????????????????????????????????? | +----------------------------------------------------+ Best States ------------- Heat Dissipation 28 Energy Generation 10 Energy Capacity 250 Matter Stores 300 Matter Capacity 300 Sight Range 16 Terrain Scan Density 10 Evasion (%) 40 Targeting Accuracy 5 Recoil Reduction 2 Item Schematics ----------------- None Robot Schematics ------------------ None Fabricated ------------ Nothing Alien Tech Used ----------------- None Achievements -------------- None Challenges ------------ None Game ------ Seed BehemothSystemLauncher Manual? 0 Play Time 00:10:54 Cumulative 322.8 hours Start 2022.06.11 @ 22:42:14 End 2022.06.11 @ 22:52:03 Sessions 1 Manual Loads 0 Difficulty Rogue Special Mode None Game No. 569 Rogue 414 Adventurer 148 Explorer 7 Win Type - Total 11 Types 9/0/1/1/0/0/0/0/0 Lore% 74 Gallery% 87 Achievement% 67 Wizard Run 0 Options --------- ASCII 0 Keyboard 0 Movement Numpad Keybinds 0 Fullscreen 1 Font 18/SmallcapsGlow Map View 76x50 Tactical HUD 1 Map Filters NONE Filters NONE Steam 1 RUN: 492e0bf1-797b-446d-8ecd-9cb2e1b5203e